fUST/lending_fUST_20260608
["ID","MTS","AMOUNT","RATE_DAILY","PERIOD"]
[424451810,1780919432000,-263.54,0.00013698,2]
[424451807,1780919432000,-186.732889,0.00013204,2]
[424451808,1780919432000,-190.776,0.0001336,2]
[424451806,1780919432000,-199.94405414,0.00012765,2]
[424451811,1780919432000,-500.0,0.00013698,2]
[424451910,1780919440000,-3004.8104786,0.00011928,2]
[424451917,1780919440000,-1590.763884,0.00013805,2]
[424451920,1780919440000,-236515.80870795,0.00013805,2]
[424451912,1780919440000,-1346255.31734321,0.00013805,2]
[424452578,1780919999000,3455.3936967,0.00011743,2]
[424452579,1780920023000,5000.0,0.00011765,2]
[424452580,1780920038000,2189.5598031,0.00024378,30]
[424452581,1780920045000,5000.0,0.00011765,2]
[424452585,1780920054000,1112.99468965,0.00011765,2]
[424452586,1780920263000,5000.0,0.00011765,2]
[424452587,1780920378000,15000.0,0.00011691,2]
[424452589,1780920478000,5000.0,0.00011765,2]
[424452590,1780920501000,5000.0,0.00011765,2]
[424452644,1780920638000,-1453.69680669,0.00011979,2]
[424452692,1780920638000,-522.3977625,0.00012363,2]
[424452690,1780920638000,-522.3977625,0.00012363,2]
[424452694,1780920638000,-522.3977625,0.00012363,2]
[424452680,1780920638000,-522.3977625,0.00012363,2]
[424452676,1780920638000,-522.3977625,0.00012363,2]
[424452682,1780920638000,-522.3977625,0.00012363,2]
[424452678,1780920638000,-522.3977625,0.00012363,2]
[424452688,1780920638000,-522.3977625,0.00012363,2]
[424452684,1780920638000,-522.3977625,0.00012363,2]
[424452686,1780920638000,-522.3977625,0.00012363,2]
[424452670,1780920638000,-522.3977625,0.00012363,2]
[424452668,1780920638000,-522.3977625,0.00012363,2]
[424452666,1780920638000,-522.3977625,0.00012363,2]
[424452664,1780920638000,-522.3977625,0.00012363,2]
[424452662,1780920638000,-615.98442321,0.00012363,2]
[424452660,1780920638000,-397.5503955,0.000121,2]
[424452658,1780920638000,-3546.30319331,0.00011979,2]
[424452642,1780920638000,-204.75051854,0.00011978,2]
[424452674,1780920638000,-522.3977625,0.00012363,2]
[424452698,1780920638000,-300.0,0.00012363,2]
[424452672,1780920638000,-522.3977625,0.00012363,2]
[424452700,1780920638000,-277.3684049,0.00012365,2]
[424452741,1780920638000,-17708.88217797,0.00013605,2]
[424452729,1780920638000,-151.0,0.00013597,2]
[424452736,1780920638000,-39368.96967124,0.00013605,2]
[424452732,1780920638000,-151.0,0.00013597,2]
[424452731,1780920638000,-151.0,0.00013597,2]
[424452727,1780920638000,-151.0,0.00013597,2]
[424452722,1780920638000,-151.0,0.00013597,2]
[424452721,1780920638000,-151.0,0.00013597,2]
[424452739,1780920638000,-11904.95004378,0.00013605,2]
[424452734,1780920638000,-188.75178884,0.00013597,2]
[424452710,1780920638000,-229.054776,0.00013424,2]
[424452725,1780920638000,-151.0,0.00013597,2]
[424452712,1780920638000,-4978.67252697,0.00013505,2]
[424452702,1780920638000,-152.0,0.00012499,7]
[424452715,1780920638000,-151.0,0.00013597,2]
[424452696,1780920638000,-522.3977625,0.00012363,2]
[424452708,1780920638000,-229.054776,0.00012881,2]
[424452705,1780920638000,-300.0,0.00012618,2]
[424452706,1780920638000,-300.0,0.00012618,2]
[424452718,1780920638000,-151.0,0.00013597,2]
[424452716,1780920638000,-151.0,0.00013597,2]
[424452948,1780920640000,-4821.69605822,0.00013605,2]
[424453039,1780920640000,-3162.5,0.00013605,2]
[424452946,1780920640000,-469.68167421,0.00013605,2]
[424453202,1780920648000,-152.0,0.0001262,7]
[424453203,1780920648000,-3164.43170283,0.00013605,2]
[424453216,1780921230000,5000.0,0.00011765,2]
[424453217,1780921238000,3572.36631657,0.00011765,2]
[424453219,1780921253000,5000.0,0.00011765,2]
[424453222,1780921276000,5000.0,0.00011765,2]
[424453223,1780921298000,5000.0,0.00011765,2]
[424453225,1780921320000,5000.0,0.00011765,2]
[424453226,1780921322000,172.72785444,0.00011424,2]
[424453227,1780921324000,189.85134776,0.00011424,2]
[424453229,1780921332000,36162.48782638,7.6e-05,2]
[424453228,1780921332000,3496.66609488,7.6e-05,2]
[424453230,1780921339000,4961.69328646,0.00024372,120]
[424453232,1780921444000,-2951.23466512,0.000115,2]
[424453233,1780921444000,-5000.0,0.00012172,2]
[424453234,1780921444000,-431.18909625,0.00012294,2]
[424453235,1780921444000,-500.0,0.00012294,2]
[424453236,1780921444000,-500.0,0.00012294,2]
[424453237,1780921444000,-500.0,0.00012294,2]
[424453238,1780921444000,-500.0,0.00012294,2]
[424453239,1780921444000,-500.0,0.00012294,2]
[424453240,1780921444000,-500.0,0.00012294,2]
[424453241,1780921444000,-500.0,0.00012294,2]
[424453242,1780921444000,-500.0,0.00012294,2]
[424453244,1780921444000,-500.0,0.00012294,2]
[424453243,1780921444000,-500.0,0.00012294,2]
[424453245,1780921444000,-500.0,0.00012294,2]
[424453250,1780921444000,-502.31128584,0.00012294,2]
[424453260,1780921444000,-182.995,0.00012295,2]
[424453259,1780921444000,-300.0,0.00012295,2]
[424453255,1780921444000,-500.0,0.00012294,2]
[424453257,1780921444000,-500.0,0.00012294,2]
[424453258,1780921444000,-450.0,0.00012294,2]
[424453246,1780921444000,-500.0,0.00012294,2]
[424453256,1780921444000,-500.0,0.00012294,2]
[424453252,1780921444000,-500.0,0.00012294,2]
[424453254,1780921444000,-500.0,0.00012294,2]
[424453251,1780921444000,-500.0,0.00012294,2]
[424453248,1780921444000,-500.0,0.00012294,2]
[424453249,1780921444000,-500.0,0.00012294,2]
[424453247,1780921444000,-500.0,0.00012294,2]
[424453253,1780921444000,-500.0,0.00012294,2]
[424453261,1780921445000,-12226.1435817,0.00012296,2]
[424453262,1780921445000,-152.0,0.00012621,7]
[424453264,1780921445000,-200.25,0.00013283,7]
[424453266,1780921445000,-196.55988524,0.00013389,2]
[424453263,1780921445000,-200.0,0.00013283,2]
[424453267,1780921445000,-265504.67455085,0.00013405,2]
[424453265,1780921445000,-702.641935,0.00013342,2]
[424453345,1780921832000,-3061.72663755,0.00013342,2]
[424453342,1780921832000,-960.81264723,0.00013342,2]
[424453340,1780921832000,-242.21835244,0.00013342,2]
[424453338,1780921832000,-301.83236737,0.00013341,2]
[424453336,1780921832000,-297.30680183,0.00013337,2]
[424453302,1780921832000,-4183.49847238,0.00013337,2]
[424453301,1780921832000,-4370.4,0.00013138,2]
[424453298,1780921832000,-629.6,0.00013138,2]
[424453678,1780921838000,-34058.43087444,0.00013405,2]
[424453675,1780921838000,-290.71575705,0.00013389,2]
[424453676,1780921838000,-331.91433291,0.00013389,2]
[424453673,1780921838000,-5.35784068,0.00013342,2]
[424453671,1780921838000,-5000.0,0.00013007,2]
[424453827,1780921841000,-2106.40144417,0.00013405,2]
[424453828,1780921841000,-954.63932051,0.00013405,2]
[424453856,1780921846000,-22389.44834273,0.00013405,2]
[424453855,1780921846000,-3147.0,0.00013405,2]
[424453861,1780921847000,-2092.26009157,0.00013405,2]
[424453953,1780923032000,-500.0,0.00011061,2]
[424453949,1780923032000,-500.0,0.00011061,2]
[424453951,1780923032000,-500.0,0.00011061,2]
[424453946,1780923032000,-500.0,0.00011061,2]
[424453944,1780923032000,-215.76050629,0.00011061,2]
[424453933,1780923032000,-3572.36631657,0.00010951,2]
[424453955,1780923032000,-484.52861357,0.00011061,2]
[424453942,1780923032000,-583.17623422,0.00011061,2]
[424453938,1780923032000,-500.0,0.00011061,2]
[424453936,1780923032000,-500.0,0.00011061,2]
[424453934,1780923032000,-500.0,0.00011061,2]
[424453931,1780923032000,-5000.0,0.00010841,2]
[424453948,1780923032000,-500.0,0.00011061,2]
[424453940,1780923032000,-500.0,0.00011061,2]
[424453957,1780923032000,-500.0,0.00011061,2]
[424453979,1780923032000,-182.995,0.00012941,2]
[424453981,1780923032000,-251.20392304,0.0001302,2]
[424453976,1780923032000,-366.92093854,0.00012917,2]
[424453960,1780923032000,-500.0,0.00011061,2]
[424453974,1780923032000,-321.05582122,0.00012917,2]
[424453983,1780923032000,-2508.98710811,0.00013105,2]
[424453978,1780923032000,-572.7406525,0.00012917,2]
[424453970,1780923032000,-500.0,0.00011061,2]
[424453966,1780923032000,-500.0,0.00011061,2]
[424453959,1780923032000,-431.1988376,0.00011061,2]
[424453963,1780923032000,-500.0,0.00011061,2]
[424453964,1780923032000,-500.0,0.00011061,2]
[424453972,1780923032000,-193.29170929,0.00012062,2]
[424453968,1780923032000,-500.0,0.00011061,2]
[424454503,1780923040000,-500.0,0.0001315,2]
[424454498,1780923040000,-3241.84139351,0.00012974,2]
[424454499,1780923040000,-1523.73763867,0.00013105,2]
[424454497,1780923040000,-1758.15860649,0.00012974,2]
[424454506,1780923040000,-500.0,0.0001315,2]
[424454502,1780923040000,-500.0,0.0001315,2]
[424454500,1780923040000,-183.24382,0.00013114,2]
[424454501,1780923040000,-500.0,0.0001315,2]
[424454505,1780923040000,-500.0,0.0001315,2]
[424454508,1780923040000,-166.79216075,0.0001315,2]
[424454510,1780923040000,-14682.68720916,0.00013205,2]
[424454509,1780923040000,-10785.6830949,0.00013205,2]
[424454512,1780923040000,-2866.49295455,0.00013205,2]
[424454507,1780923040000,-500.0,0.0001315,2]
[424454513,1780923040000,-3371.8,0.00013205,2]
[424454504,1780923040000,-500.0,0.0001315,2]
[424454522,1780923041000,-1842.40989433,0.00013205,2]
[424454521,1780923041000,-362.31906355,0.00013205,2]
[424454534,1780923043000,-632.10889114,0.00013205,2]
[424454535,1780923043000,-942.35491879,0.00013205,2]
[424454549,1780923046000,-8567.49650068,0.00013205,2]
[424454550,1780923046000,-7408.94175514,0.00013205,2]
[424454578,1780924232000,-399.80055215,0.00010409,2]
[424454576,1780924232000,-900.33590252,0.00010409,2]
[424454922,1780924241000,-389.08641015,0.00012693,2]
[424454932,1780924241000,-500.0,0.00012693,2]
[424454920,1780924241000,-500.0,0.00012693,2]
[424454918,1780924241000,-500.0,0.00012693,2]
[424454924,1780924241000,-500.0,0.00012693,2]
[424454928,1780924241000,-500.0,0.00012693,2]
[424454930,1780924241000,-500.0,0.00012693,2]
[424454934,1780924241000,-500.0,0.00012693,2]
[424454951,1780924241000,-1165.3880817,0.00012694,2]
[424454938,1780924241000,-500.0,0.00012693,2]
[424454943,1780924241000,-500.0,0.00012693,2]
[424454940,1780924241000,-500.0,0.00012693,2]
[424454948,1780924241000,-500.0,0.00012693,2]
[424454947,1780924241000,-500.0,0.00012693,2]
[424454945,1780924241000,-500.0,0.00012693,2]
[424454926,1780924241000,-500.0,0.00012693,2]
[424454936,1780924241000,-550.0,0.00012693,2]
[424454910,1780924241000,-500.0,0.00012693,2]
[424454952,1780924241000,-1279.3559634,0.00012694,2]
[424454914,1780924241000,-500.0,0.00012693,2]
[424454882,1780924241000,-500.0,0.00010514,2]
[424454880,1780924241000,-3699.86354533,0.00010409,2]
[424454894,1780924241000,-398.42992249,0.00010514,2]
[424454896,1780924241000,-250.0,0.00011997,2]
[424454892,1780924241000,-500.0,0.00010514,2]
[424454891,1780924241000,-500.0,0.00010514,2]
[424454898,1780924241000,-466.6296297,0.00012126,2]
[424454900,1780924241000,-157.91199,0.000122,2]
[424454883,1780924241000,-164.88637112,0.00010514,2]
[424454902,1780924241000,-500.0,0.00012693,2]
[424454885,1780924241000,-500.0,0.00010514,2]
[424454889,1780924241000,-646.24438287,0.00010514,2]
[424454887,1780924241000,-500.0,0.00010514,2]
[424454904,1780924241000,-211.28265716,0.00012693,2]
[424454906,1780924241000,-500.0,0.00012693,2]
[424454908,1780924241000,-500.0,0.00012693,2]
[424454911,1780924241000,-500.0,0.00012693,2]
[424454915,1780924241000,-500.0,0.00012693,2]
[424454954,1780924241000,-221.5913616,0.00012694,2]
[424454975,1780924241000,-151.5,0.00013256,2]
[424454959,1780924241000,-156.0,0.00013105,2]
[424455005,1780924241000,-152.0,0.00013284,7]
[424455007,1780924241000,-526.9814512,0.00013295,2]
[424455009,1780924241000,-1563.12243955,0.00013337,2]
[424455014,1780924241000,-161.5852323,0.00013405,2]
[424455018,1780924241000,-165.114,0.00013437,2]
[424455025,1780924241000,-172.5757068,0.00013493,2]
[424455015,1780924241000,-184.21,0.00013405,2]
[424455003,1780924241000,-508.8853292,0.00013256,2]
[424455023,1780924241000,-151.5,0.00013493,2]
[424455027,1780924241000,-185.25752544,0.00013493,2]
[424455030,1780924241000,-314.74247456,0.00013493,2]
[424455032,1780924241000,-500.0,0.00013493,2]
[424455034,1780924241000,-500.0,0.00013493,2]
[424455040,1780924241000,-406.66638977,0.00013493,2]
[424455036,1780924241000,-500.0,0.00013493,2]
[424454957,1780924241000,-3410.490078,0.00012694,2]
[424455021,1780924241000,-151.5,0.00013493,2]
[424454999,1780924241000,-500.0,0.00013256,2]
[424455012,1780924241000,-887.53553273,0.00013337,2]
[424455001,1780924241000,-500.0,0.00013256,2]
[424454969,1780924241000,-277.63743496,0.00013219,2]
[424454971,1780924241000,-500.0,0.00013256,2]
[424454973,1780924241000,-151.5,0.00013256,2]
[424454995,1780924241000,-500.0,0.00013256,2]
[424454961,1780924241000,-183.24382,0.00013136,2]
[424454979,1780924241000,-151.5,0.00013256,2]
[424454965,1780924241000,-159.55454935,0.00013219,2]
[424454963,1780924241000,-151.5,0.00013219,2]
[424454977,1780924241000,-151.5,0.00013256,2]
[424455038,1780924241000,-500.0,0.00013493,2]
[424454981,1780924241000,-263.83115063,0.00013256,2]
[424454983,1780924241000,-500.0,0.00013256,2]
[424454985,1780924241000,-500.0,0.00013256,2]
[424454987,1780924241000,-500.0,0.00013256,2]
[424454991,1780924241000,-500.0,0.00013256,2]
[424454993,1780924241000,-500.0,0.00013256,2]
[424454989,1780924241000,-500.0,0.00013256,2]
[424454967,1780924241000,-151.5,0.00013219,2]
[424455106,1780924248000,-331.61,0.00013698,2]
[424455105,1780924248000,-2375.61379719,0.00013678,2]
[424455104,1780924248000,-1253.83847493,0.00013678,2]
[424455100,1780924248000,-205.61067487,0.00013493,2]
[424455101,1780924248000,-516.30827863,0.0001353,2]
[424455097,1780924248000,-93.33361023,0.00013493,2]
[424455102,1780924248000,-154.62,0.00013622,2]
[424455099,1780924248000,-500.0,0.00013493,2]
[424455098,1780924248000,-500.0,0.00013493,2]
[424455108,1780924248000,-169.54,0.00013698,2]
[424455103,1780924248000,-189.85134776,0.00013652,2]
[424455107,1780924248000,-500.0,0.00013698,2]
[424455110,1780924248000,-129.78379719,0.00013698,2]
[424455116,1780924248000,-500.0,0.00013698,2]
[424455111,1780924248000,-500.0,0.00013698,2]
[424455112,1780924248000,-500.0,0.00013698,2]
[424455113,1780924248000,-500.0,0.00013698,2]
[424455115,1780924248000,-500.0,0.00013698,2]
[424455114,1780924248000,-500.0,0.00013698,2]
[424455119,1780924248000,-645.0713994,0.00013699,2]
[424455120,1780924248000,-290.56256472,0.00013701,2]
[424455121,1780924248000,-529.33408013,0.0001375,2]
[424455117,1780924248000,-500.0,0.00013698,2]
[424455118,1780924248000,-597.36910325,0.00013698,2]
[424455122,1780924248000,-482.86457953,0.00013767,2]
[424455109,1780924248000,-370.21620281,0.00013698,2]
[424455140,1780924568000,274.15887368,0.00024347,120]
[424455160,1780925303000,-210.93665805,7.998e-05,2]
[424455159,1780925303000,-4704.89311012,7.6e-05,2]
[424455164,1780925303000,-3522.45734951,8e-05,2]
[424455162,1780925303000,-500.0,7.998e-05,2]
[424455163,1780925303000,-561.71288232,7.998e-05,2]
[424455161,1780925303000,-500.0,7.998e-05,2]
[424455169,1780925307000,-500.0,9.997e-05,2]
[424455167,1780925307000,-500.0,9.997e-05,2]
[424455173,1780925307000,-500.0,9.997e-05,2]
[424455166,1780925307000,-500.0,9.997e-05,2]
[424455168,1780925307000,-500.0,9.997e-05,2]
[424455165,1780925307000,-1477.54265049,8e-05,2]
[424455170,1780925307000,-500.0,9.997e-05,2]
[424455177,1780925307000,-500.0,9.997e-05,2]
[424455171,1780925307000,-500.0,9.997e-05,2]
[424455174,1780925307000,-500.0,9.997e-05,2]
[424455175,1780925307000,-500.0,9.997e-05,2]
[424455176,1780925307000,-500.0,9.997e-05,2]
[424455179,1780925307000,-500.0,9.997e-05,2]
[424455178,1780925307000,-500.0,9.997e-05,2]
[424455172,1780925307000,-500.0,9.997e-05,2]
[424455186,1780925308000,-151.0,0.0001,2]
[424455184,1780925308000,-151.319,0.0001,2]
[424455185,1780925308000,-151.0,0.0001,2]
[424455183,1780925308000,-114.75079662,9.997e-05,2]
[424455182,1780925308000,-522.45734951,9.997e-05,2]
[424455181,1780925308000,-500.0,9.997e-05,2]
[424455180,1780925308000,-500.0,9.997e-05,2]
[424455193,1780925309000,-151.0,0.0001,2]
[424455192,1780925309000,-151.0,0.0001,2]
[424455190,1780925309000,-151.0,0.0001,2]
[424455188,1780925309000,-151.0,0.0001,2]
[424455189,1780925309000,-151.0,0.0001,2]
[424455191,1780925309000,-151.0,0.0001,2]
[424455194,1780925309000,-151.0,0.0001,2]
[424455187,1780925309000,-151.0,0.0001,2]
[424455197,1780925309000,-151.0,0.0001,3]
[424455198,1780925309000,-151.0,0.0001,3]
[424455196,1780925309000,-200.818,0.0001,2]
[424455199,1780925309000,-151.0,0.0001,3]
[424455200,1780925309000,-151.0,0.0001,3]
[424455201,1780925309000,-151.0,0.0001,3]
[424455202,1780925309000,-151.0,0.0001,3]
[424455203,1780925309000,-211.09,0.0001,3]
[424455195,1780925309000,-151.0,0.0001,2]
[424455205,1780925319000,-172.72785444,0.00010699,2]
[424455204,1780925319000,-5000.0,0.00010592,2]
[424455207,1780925319000,-373.61513038,0.00010944,7]
[424455206,1780925319000,-373.61513038,0.00010729,7]
[424455211,1780925335000,-373.61513038,0.00011587,7]
[424455210,1780925335000,-373.61513038,0.00011265,7]
[424455212,1780925339000,5000.0,0.00012,2]
[424455290,1780925431000,-1438.9729413,0.00011895,2]
[424455276,1780925431000,-1485.02666404,0.00011895,2]
[424455273,1780925431000,-586.94081868,0.00011895,2]
[424455278,1780925431000,-1489.05957598,0.00011895,2]
[424455302,1780925431000,-500.0,0.00012544,2]
[424455304,1780925431000,-500.0,0.00012544,2]
[424455306,1780925431000,-500.0,0.00012544,2]
[424455308,1780925431000,-500.0,0.00012544,2]
[424455292,1780925431000,-373.6151304,0.00012016,7]
[424455310,1780925431000,-500.0,0.00012544,2]
[424455295,1780925431000,-192.15,0.0001235,2]
[424455298,1780925431000,-500.0,0.00012544,2]
[424455312,1780925431000,-500.0,0.00012544,2]
[424455300,1780925431000,-500.0,0.00012544,2]
[424455316,1780925431000,-252.21820305,0.00012544,2]
[424455314,1780925431000,-500.0,0.00012544,2]
[424455294,1780925431000,-184.21,0.0001235,2]
[424455521,1780925438000,-193.85336746,0.00013805,2]
[424455516,1780925438000,-529.33408013,0.00013778,2]
[424455507,1780925438000,-600.0,0.00013596,2]
[424455514,1780925438000,-46.4695006,0.00013767,2]
[424455505,1780925438000,-854.27471998,0.00013493,2]
[424455502,1780925438000,-480.52952999,0.00013493,2]
[424455497,1780925438000,-461.22312057,0.00013493,2]
[424455488,1780925438000,-600.0,0.00012544,2]
[424455500,1780925438000,-266.96084999,0.00013493,2]
[424455494,1780925438000,-256.23506699,0.00013493,2]
[424455485,1780925438000,-113.97984022,0.00012544,2]
[424455490,1780925438000,-9378.6699017,0.00012545,2]
[424455512,1780925438000,-819.95221435,0.00013705,2]
[424455492,1780925438000,-166.1935212,0.00012545,2]
[424455519,1780925438000,-529.33408013,0.0001378,2]
[424455548,1780925438000,-21081.46517483,0.0001467,2]
[424455538,1780925438000,-1334.80424996,0.0001404,2]
[424455540,1780925438000,-3266.50704489,0.00014608,2]
[424455545,1780925438000,-2053.92148571,0.0001467,2]
[424455536,1780925438000,-529.33408013,0.00013998,2]
[424455542,1780925438000,-591776.93375627,0.0001467,2]
[424455531,1780925438000,-529.33408013,0.00013944,2]
[424455529,1780925438000,-183.24382,0.00013914,2]
[424455527,1780925438000,-529.33408013,0.00013876,2]
[424455525,1780925438000,-529.33408013,0.00013822,2]
[424455523,1780925438000,-529.33408013,0.00013806,2]
[424455534,1780925438000,-529.33408013,0.00013968,2]
[424455509,1780925438000,-331.61,0.00013698,2]
[424455723,1780925448000,-1152.0,0.0001467,2]
[424455724,1780925484000,169.73926769,0.00024337,120]
[424455725,1780925484000,169.73926769,0.00024337,120]
[424455726,1780925485000,169.73926769,0.00024337,120]
[424455727,1780925485000,169.73926769,0.00024337,120]
[424455728,1780925485000,169.73926769,0.00024337,120]
[424455729,1780925486000,169.73926769,0.00024337,120]
[424455730,1780925604000,169.73926768,0.00024334,120]
[424455731,1780925768000,194.99977779,0.00024334,120]
[424455732,1780925769000,194.99977779,0.00024334,120]
[424455744,1780925983000,-1238.88350466,8e-05,2]
[424455743,1780925983000,-794.43,8e-05,2]
[424455757,1780926205000,-173.52365359,0.00011308,2]
[424455758,1780926205000,-462.58655915,0.00011308,2]
[424455759,1780926205000,-4097.88978726,0.00011309,2]
[424455761,1780926299000,-5000.0,0.00011196,2]
[424455775,1780926446000,-500.0,0.00011417,2]
[424455774,1780926446000,-500.0,0.00011417,2]
[424455776,1780926446000,-500.0,0.00011417,2]
[424455773,1780926446000,-500.0,0.00011417,2]
[424455771,1780926446000,-500.0,0.00011417,2]
[424455772,1780926446000,-500.0,0.00011417,2]
[424455777,1780926446000,-250.0,0.00011417,2]
[424455781,1780926446000,-300.0,0.00011418,2]
[424455779,1780926446000,-300.0,0.00011418,2]
[424455780,1780926446000,-300.0,0.00011418,2]
[424455782,1780926446000,-300.0,0.00011418,2]
[424455784,1780926446000,-300.0,0.00011418,2]
[424455783,1780926446000,-300.0,0.00011418,2]
[424455786,1780926446000,-300.0,0.00011418,2]
[424455785,1780926446000,-300.0,0.00011418,2]
[424455778,1780926446000,-300.0,0.00011418,2]
[424455793,1780926447000,-121.0,0.00011645,2]
[424455792,1780926447000,-300.0,0.00011418,2]
[424455788,1780926447000,-300.0,0.00011418,2]
[424455791,1780926447000,-300.0,0.00011418,2]
[424455789,1780926447000,-300.0,0.00011418,2]
[424455790,1780926447000,-300.0,0.00011418,2]
[424455787,1780926447000,-300.0,0.00011418,2]
[424455797,1780926493000,-265.0,0.00011529,2]
[424455827,1780926611000,-5000.0,0.00011414,2]
[424455828,1780926611000,-905.0,0.00011529,2]
[424455829,1780926630000,-5000.0,0.00011414,2]
[424455865,1780926632000,-630.0295664,0.00012965,2]
[424455864,1780926632000,-319.005,0.00012812,2]
[424455862,1780926632000,-152.0,0.00011795,7]
[424455869,1780926632000,-500.0,0.00013089,2]
[424455867,1780926632000,-500.0,0.00013089,2]
[424455855,1780926632000,-3014.8035,0.00011529,2]
[424455861,1780926632000,-512.59652633,0.00011644,2]
[424455859,1780926632000,-300.0,0.00011643,2]
[424455857,1780926632000,-815.1965,0.00011529,2]
[424455871,1780926632000,-500.0,0.00013089,2]
[424455873,1780926632000,-500.0,0.00013089,2]
[424455876,1780926632000,-500.0,0.00013089,2]
[424455878,1780926632000,-500.0,0.00013089,2]
[424455882,1780926632000,-500.0,0.00013089,2]
[424455880,1780926632000,-500.0,0.00013089,2]
[424455905,1780926632000,-182.555,0.0001418,2]
[424455906,1780926632000,-190.22726229,0.0001418,2]
[424455907,1780926632000,-591.75608974,0.00014447,2]
[424455904,1780926632000,-396.67611338,0.00013819,2]
[424455902,1780926632000,-923.1601129,0.00013678,2]
[424455899,1780926632000,-1690.4400007,0.00013678,2]
[424455884,1780926632000,-300.0,0.00013351,2]
[424455896,1780926632000,-220.37561855,0.00013678,2]
[424455890,1780926632000,-600.0,0.00013352,2]
[424455886,1780926632000,-300.0,0.00013351,2]
[424455897,1780926632000,-1922.11811995,0.00013678,2]
[424455894,1780926632000,-1281.17533493,0.00013678,2]
[424455888,1780926632000,-300.0,0.00013351,2]
[424455892,1780926632000,-1843.04758981,0.00013673,2]
[424455934,1780926638000,-500.0,0.00013089,2]
[424455936,1780926638000,-207.18096561,0.00013089,2]
[424455955,1780926638000,-292.81903439,0.00013089,2]
[424455957,1780926638000,-500.0,0.00013089,2]
[424455959,1780926638000,-500.0,0.00013089,2]
[424455961,1780926638000,-500.0,0.00013089,2]
[424455973,1780926638000,-35774.639437,0.0001447,2]
[424455965,1780926638000,-500.0,0.00013089,2]
[424455967,1780926638000,-500.0,0.00013089,2]
[424455969,1780926638000,-2621.02910537,0.00014447,2]
[424455971,1780926638000,-323.71181366,0.00014447,2]
[424455975,1780926638000,-14452.56778394,0.0001447,2]
[424455963,1780926638000,-500.0,0.00013089,2]
[424456303,1780926641000,-14.50571523,0.00012302,2]
[424456548,1780926643000,-2545.09488137,0.00012302,2]
[424456558,1780926643000,-50074.46059615,0.0001447,2]
[424456551,1780926643000,-532131.54908459,0.0001447,2]
[424456914,1780926646000,-5500.0,0.0001447,2]
[424456930,1780926646000,-927.19930424,0.0001447,2]
[424456927,1780926646000,-253.7425319,0.0001447,2]
[424456912,1780926646000,-4453.21873479,0.0001447,2]
[424458894,1780927075000,-5000.0,0.00010637,2]
[424458895,1780927075000,-4812.93328366,0.00010744,2]
[424458893,1780927075000,-187.06671634,0.00010531,2]
[424458905,1780927078000,-300.0,0.00011073,2]
[424458903,1780927078000,-354.58427441,0.00010962,2]
[424458901,1780927078000,-500.0,0.00010962,2]
[424458897,1780927078000,-229.68300898,0.00010962,2]
[424458899,1780927078000,-500.0,0.00010962,2]
[424458900,1780927078000,-500.0,0.00010962,2]
[424458904,1780927078000,-1028.81176009,0.00011073,2]
[424458898,1780927078000,-500.0,0.00010962,2]
[424458902,1780927078000,-500.0,0.00010962,2]
[424458906,1780927078000,-500.0,0.00011073,2]
[424458896,1780927078000,-187.06671634,0.00010744,2]
[424458909,1780927078000,-500.0,0.00011073,2]
[424458908,1780927078000,-500.0,0.00011073,2]
[424458910,1780927078000,-500.0,0.00011073,2]
[424458913,1780927078000,-500.0,0.00011073,2]
[424458914,1780927078000,-500.0,0.00011073,2]